bitfinex/quotes_BTCUSD_20220204
["timestamp","ask_amount","ask_price","bid_price","bid_amount"]
[1643964070269,0.40034355,37941.0,37940.0,0.229557]
[1643964070469,0.4,37941.0,37940.0,0.229557]
[1643964070672,1.15,37941.0,37940.0,0.229557]
[1643964070872,1.15,37941.0,37939.0,0.18176893]
[1643964071070,1.15034355,37941.0,37939.0,0.18176893]
[1643964072509,1.15034355,37941.0,37940.0,0.065883]
[1643964072710,1.15,37941.0,37940.0,0.065883]
[1643964073412,1.15,37941.0,37940.0,0.29544]
[1643964075310,0.4,37941.0,37940.0,0.48849745]
[1643964075554,0.85,37941.0,37940.0,0.48849745]
[1643964076355,0.85,37941.0,37940.0,0.53849745]
[1643964076554,0.58643289,37941.0,37940.0,0.48849745]
[1643964076755,0.58643289,37941.0,37940.0,0.53849745]
[1643964076958,0.58643289,37941.0,37940.0,0.48849745]
[1643964077557,0.58643289,37941.0,37940.0,0.47899745]
[1643964077958,0.58643289,37941.0,37940.0,0.52899745]
[1643964080007,0.00138457,37942.0,37940.0,0.52899745]
[1643964080211,0.00104102,37942.0,37941.0,0.28215]
[1643964080407,0.00034355,37945.0,37941.0,0.348029]
[1643964080607,0.00104101,37943.0,37942.0,0.197634]
[1643964080810,0.00104101,37943.0,37942.0,0.427174]
[1643964080811,0.0008264,37943.0,37942.0,0.427174]
[1643964081509,0.00034355,37945.0,37942.0,0.427174]
[1643964081707,0.01878483,37946.0,37943.0,0.131757]
[1643964081907,0.00034355,37945.0,37943.0,0.131757]
[1643964082112,0.01878483,37946.0,37943.0,0.131757]
[1643964082711,0.00034355,37946.0,37943.0,0.131757]
[1643964082908,0.00034355,37948.0,37944.0,0.05]
[1643964083159,0.00034355,37946.0,37943.0,0.131757]
[1643964083359,0.07234355,37947.0,37943.0,0.131757]
[1643964083559,0.00034355,37946.0,37943.0,0.131757]
[1643964083764,0.072,37947.0,37943.0,0.131757]
[1643964083958,0.00034355,37946.0,37943.0,0.181757]
[1643964084160,0.85000141,37942.0,37941.0,0.18435717]
[1643964084961,0.15000141,37942.0,37941.0,0.54567921]
[1643964085161,0.15000141,37942.0,37941.0,0.72640874]
[1643964085461,0.15000141,37942.0,37941.0,0.79229774]
[1643964087407,0.15000141,37942.0,37941.0,1.13154684]
[1643964088109,0.15000141,37942.0,37941.0,0.79229774]
[1643964088309,0.15000141,37942.0,37941.0,0.84229774]
[1643964088511,0.15000141,37942.0,37941.0,0.79229774]
[1643964089312,0.15000141,37942.0,37941.0,0.84229774]
[1643964090114,0.15000141,37942.0,37941.0,0.79229774]
[1643964090315,0.15000141,37942.0,37941.0,1.18599185]
[1643964090567,0.50000141,37942.0,37941.0,1.13339185]
[1643964090766,0.50000141,37942.0,37941.0,0.55896821]
[1643964090970,0.50000141,37942.0,37941.0,0.32942221]
[1643964091168,0.50000141,37942.0,37941.0,0.55897121]
[1643964091368,1.55000141,37942.0,37941.0,0.32942221]
[1643964091575,1.55000141,37942.0,37941.0,0.26353321]
[1643964092969,1.89617541,37942.0,37941.0,0.13177604]
[1643964094072,1.55000141,37942.0,37941.0,0.36132504]
[1643964094311,1.89617541,37942.0,37939.0,0.131777]
[1643964094507,0.96956921,37941.0,37939.0,0.131777]
[1643964094709,0.346174,37939.0,37927.0,0.13182002]
[1643964094905,0.07940336,37933.0,37930.0,0.00104153]
[1643964095105,0.346174,37939.0,37930.0,0.00104153]
[1643964095106,0.396174,37938.0,37930.0,0.00104153]
[1643964095307,0.34651755,37938.0,37932.0,0.1781237]
[1643964095505,0.346174,37937.0,37932.0,0.3099237]
[1643964095707,0.34651755,37937.0,37932.0,0.3099237]
[1643964096106,0.39651755,37937.0,37932.0,0.3099237]
[1643964096306,0.33889896,37934.0,37932.0,0.1318]
[1643964096507,0.346174,37933.0,37932.0,0.1318]
[1643964096710,0.07424026,37936.0,37932.0,0.1318]
[1643964097007,0.346174,37935.0,37932.0,0.1318]
[1643964097807,0.346174,37935.0,37932.0,0.197705]
[1643964098458,0.33492132,37934.0,37932.0,0.197705]
[1643964098659,0.346174,37935.0,37932.0,0.197705]
[1643964099059,0.346174,37935.0,37933.0,0.131803]
[1643964099861,0.33317392,37934.0,37933.0,0.131803]
[1643964100162,0.346174,37935.0,37933.0,0.131803]
[1643964101163,0.346174,37935.0,37933.0,0.3454828]
[1643964101662,0.346174,37935.0,37933.0,0.197704]
[1643964103609,0.00034355,37937.0,37934.0,0.1976937]
[1643964103809,0.00034355,37938.0,37934.0,0.1976937]
[1643964104010,0.346174,37937.0,37934.0,0.1976937]
[1643964104208,0.346174,37937.0,37934.0,0.2635947]
[1643964104412,0.346174,37937.0,37936.0,0.065896]
[1643964104608,0.00034355,37939.0,37936.0,0.065896]
[1643964104809,0.00034355,37941.0,37936.0,0.065896]
[1643964105008,0.346174,37940.0,37936.0,0.13178849]
[1643964105208,0.346174,37940.0,37938.0,0.131785]
[1643964105555,0.346174,37940.0,37938.0,0.26356841]
[1643964106356,0.346174,37940.0,37939.0,0.065892]
[1643964106357,0.34607103,37940.0,37939.0,0.065892]
[1643964107356,1.24607103,37940.0,37939.0,0.065892]
[1643964107758,0.9,37940.0,37939.0,0.065892]
[1643964109318,1.3,37940.0,37938.0,0.39534141]
[1643964109713,0.346165,37939.0,37938.0,0.131785]
[1643964109913,0.35361743,37939.0,37938.0,0.131785]
[1643964110913,0.43310072,37939.0,37938.0,0.131785]
[1643964111114,0.35361743,37939.0,37938.0,0.131785]
[1643964112512,0.35361743,37939.0,37938.0,0.263566]
[1643964112914,0.40361743,37939.0,37938.0,0.263566]
[1643964113161,1.50361743,37939.0,37938.0,0.263566]
[1643964114765,1.50361743,37939.0,37938.0,0.131781]
[1643964114962,1.15745243,37939.0,37938.0,0.131781]
[1643964115162,1.50361743,37939.0,37938.0,0.131781]
[1643964115363,1.45361743,37939.0,37937.0,0.131781]
[1643964115564,0.346165,37938.0,37937.0,0.131781]
[1643964115765,1.246165,37938.0,37937.0,0.131781]
[1643964116268,0.9,37938.0,37937.0,0.361465]
[1643964118627,1.296165,37938.0,37937.0,0.131781]
[1643964118826,0.9,37938.0,37937.0,0.361465]
[1643964120227,1.00420646,37938.0,37937.0,0.361465]
[1643964120426,1.00420646,37938.0,37937.0,0.411465]
[1643964120656,1.00420646,37938.0,37937.0,0.361465]
[1643964121054,0.9,37938.0,37937.0,0.361465]
[1643964123659,0.9,37938.0,37937.0,0.411465]
[1643964125309,0.9,37938.0,37937.0,0.361465]
[1643964125911,0.9,37938.0,37937.0,0.411465]
[1643964127617,0.9,37938.0,37937.0,0.861465]
[1643964127816,0.10359997,37935.0,37933.0,0.13745555]
[1643964128067,0.10232596,37933.0,37928.0,0.0659106]
[1643964128260,0.346165,37932.0,37928.0,0.0659106]
[1643964128459,0.346165,37932.0,37925.0,0.58836588]
[1643964128460,0.346165,37932.0,37930.0,0.00104164]
[1643964128660,1.64173644,37931.0,37930.0,0.00104164]
[1643964128861,1.98790144,37931.0,37930.0,0.00104164]
[1643964129561,1.98790144,37931.0,37925.0,0.48773522]
[1643964129762,1.98790144,37931.0,37929.0,0.13284865]
[1643964129961,1.64173644,37931.0,37930.0,0.229738]
[1643964131364,1.98790144,37931.0,37929.0,0.13284865]
[1643964132005,1.98790144,37931.0,37929.0,0.131807]
[1643964132809,2.03790144,37931.0,37929.0,0.131807]
[1643964133806,1.746165,37931.0,37929.0,0.131807]
[1643964134006,1.4,37931.0,37930.0,0.229738]
[1643964137270,1.45,37931.0,37930.0,0.229738]
[1643964137468,1.45,37931.0,37930.0,0.22966214]
[1643964137668,1.45,37931.0,37929.0,0.00097134]
[1643964137869,1.0,37930.0,37928.0,0.065916]
[1643964138075,1.0,37930.0,37929.0,0.229667]
[1643964138869,0.05,37931.0,37929.0,0.229667]
[1643964139071,0.10232596,37933.0,37929.0,0.477384]
[1643964139311,0.15232596,37933.0,37929.0,0.247717]
[1643964139705,0.05,37933.0,37929.0,0.247717]
[1643964139905,0.05,37933.0,37929.0,0.31361822]
[1643964140106,0.20359997,37935.0,37930.0,0.0659]
[1643964140307,0.346178,37934.0,37930.0,0.0659]
[1643964140611,0.346178,37934.0,37930.0,0.06687609]
[1643964141608,0.15359997,37935.0,37930.0,0.0659]
[1643964141907,0.15359997,37935.0,37930.0,0.06687608]
[1643964142307,0.15359997,37935.0,37930.0,0.00097608]
[1643964142711,0.15359997,37935.0,37929.0,0.26361822]
[1643964142712,0.07991146,37932.0,37929.0,0.26361822]
[1643964142909,0.346178,37931.0,37929.0,0.131808]
[1643964143160,0.346178,37933.0,37930.0,0.00097577]
[1643964143857,0.346178,37933.0,37929.0,0.131808]
[1643964144058,0.346178,37933.0,37930.0,0.00097576]
[1643964145163,0.68519113,37933.0,37929.0,0.131808]
[1643964145359,0.68519113,37933.0,37930.0,0.00097576]
[1643964146363,0.68519113,37933.0,37929.0,0.131808]
[1643964146563,0.68519113,37933.0,37930.0,0.00045574]
[1643964146816,0.2982918,37932.0,37930.0,0.00045574]
[1643964147017,1.446178,37931.0,37930.0,0.00045574]
[1643964147617,1.446178,37931.0,37929.0,0.131808]
[1643964147817,1.1,37931.0,37929.0,0.13226375]
[1643964148216,1.1,37931.0,37930.0,0.22966]
[1643964150119,1.1,37931.0,37930.0,1.42966]
[1643964150319,1.446178,37931.0,37930.0,1.2]
[1643964150561,1.1,37931.0,37930.0,1.42966]
[1643964150762,0.346178,37931.0,37930.0,1.2]
[1643964150966,0.15359997,37935.0,37930.0,1.2]
[1643964151162,0.346178,37934.0,37930.0,1.2]
[1643964152661,0.15359997,37935.0,37931.0,0.229651]
[1643964157016,0.15359997,37935.0,37931.0,0.29555756]
[1643964158078,0.10359997,37935.0,37933.0,0.05]
[1643964158279,0.10359997,37935.0,37934.0,0.22963]
[1643964158678,0.55359997,37935.0,37933.0,0.115903]
[1643964158881,0.55359997,37935.0,37933.0,0.065903]
[1643964159078,0.55359997,37935.0,37933.0,0.115903]
[1643964160079,0.55359997,37935.0,37933.0,0.181803]
[1643964160279,0.10359997,37935.0,37933.0,0.31359726]
[1643964160486,0.15034578,37942.0,37934.0,0.58374837]
[1643964160693,0.15000141,37942.0,37941.0,0.05]
[1643964160883,0.15000141,37942.0,37941.0,0.30876301]
[1643964161079,0.15000141,37942.0,37941.0,0.53833801]
[1643964161280,0.00034437,37944.0,37941.0,0.63833801]
[1643964161486,0.00131656,37945.0,37943.0,0.05]
[1643964161679,0.50034437,37944.0,37943.0,0.37936]
[1643964161913,0.5,37944.0,37943.0,0.608921]
[1643964162111,0.5,37944.0,37943.0,0.60892]
[1643964162914,0.5,37944.0,37943.0,0.97406339]
[1643964163310,0.5,37944.0,37943.0,1.07406339]
[1643964165414,0.5,37944.0,37943.0,0.70892]
[1643964165663,0.9,37944.0,37943.0,0.37936]
[1643964165861,0.9,37944.0,37943.0,0.55892]
[1643964166862,0.9,37944.0,37943.0,0.60892]
[1643964167262,0.5,37944.0,37943.0,0.60892]
[1643964167463,0.5,37944.0,37943.0,0.55892]
[1643964167763,0.8,37944.0,37943.0,0.60892]
[1643964169413,0.8,37944.0,37943.0,0.55892]
[1643964174668,0.5,37944.0,37943.0,0.55892]
[1643964175467,0.8,37944.0,37943.0,0.55892]
[1643964176070,0.5,37944.0,37943.0,0.55892]
[1643964176914,0.5,37944.0,37943.0,0.32936]
[1643964177112,0.5,37944.0,37943.0,0.55892]
[1643964177313,0.5,37944.0,37943.0,0.558919]
[1643964177513,0.9,37944.0,37943.0,0.32936]
[1643964177712,0.9,37944.0,37943.0,0.55892]
[1643964178112,0.9,37944.0,37943.0,0.32936]
[1643964178513,1.2,37944.0,37943.0,0.32936]
[1643964179113,0.9,37944.0,37943.0,0.32936]
[1643964180566,1.3,37944.0,37943.0,0.32936]
[1643964180766,0.9,37944.0,37943.0,0.32936]
[1643964180965,0.9,37944.0,37943.0,0.55892]
[1643964181370,1.25,37944.0,37943.0,0.558919]
[1643964181566,0.9,37944.0,37943.0,0.558919]
[1643964181766,0.5,37944.0,37943.0,0.558919]
[1643964181967,0.5,37944.0,37943.0,0.32936]
[1643964182468,0.5,37944.0,37943.0,0.55892]
[1643964183567,0.85,37944.0,37943.0,0.32936]
[1643964184167,0.85,37944.0,37943.0,0.37936]
[1643964185113,0.499921,37944.0,37943.0,0.60892]
[1643964185315,0.799921,37944.0,37943.0,0.60892]
[1643964185513,0.799921,37944.0,37943.0,0.55892]
[1643964185713,0.799921,37944.0,37943.0,0.60892]
[1643964186313,0.799921,37944.0,37943.0,0.55892]
[1643964186515,0.499921,37944.0,37943.0,0.55892]
[1643964186914,0.499921,37944.0,37943.0,0.60892]
[1643964190980,0.499921,37944.0,37943.0,0.37936]
[1643964191180,0.499921,37944.0,37943.0,0.60892]
[1643964191379,0.499921,37944.0,37943.0,0.37936]
[1643964191579,0.499921,37944.0,37943.0,0.60892]
[1643964192211,0.949921,37944.0,37943.0,0.60892]
[1643964192714,0.499921,37944.0,37943.0,0.60892]
[1643964193112,0.00034437,37946.0,37943.0,0.44523638]
[1643964193412,0.072,37947.0,37943.0,0.44523638]
[1643964193413,0.072,37947.0,37946.0,0.065874]
[1643964194011,0.072,37947.0,37946.0,0.24931861]
[1643964194211,1.022,37947.0,37946.0,0.24931861]
[1643964194412,1.368178,37947.0,37946.0,0.24931861]
[1643964194611,1.368178,37947.0,37946.0,0.065874]
[1643964194812,1.418178,37947.0,37946.0,0.065874]
[1643964195215,1.418178,37947.0,37944.0,0.065875]
[1643964195412,0.346178,37946.0,37944.0,0.065875]
[1643964195666,0.34652228,37946.0,37944.0,0.065875]
[1643964197266,0.34652228,37946.0,37945.0,0.05]
[1643964197464,0.346178,37946.0,37945.0,0.05]
[1643964198265,1.02293484,37947.0,37945.0,0.11587721]
[1643964198468,0.7,37946.0,37945.0,0.11587721]
[1643964198865,0.7,37946.0,37945.0,0.05]
[1643964199067,1.096178,37946.0,37944.0,0.39955414]
[1643964199321,1.09652228,37946.0,37944.0,0.39955414]
[1643964199716,1.09652228,37946.0,37944.0,0.19763]
[1643964199918,0.85,37945.0,37944.0,0.19763]
[1643964200715,0.85,37945.0,37944.0,0.37558828]
[1643964203463,0.85,37945.0,37944.0,0.42558828]
[1643964208914,0.84988553,37945.0,37944.0,0.42558828]
[1643964211166,0.84988553,37945.0,37944.0,0.19763]
[1643964211368,0.84988553,37945.0,37944.0,0.065875]
[1643964212367,0.84988553,37945.0,37944.0,0.2455171]
[1643964213167,0.84988553,37945.0,37944.0,0.2955171]
[1643964214614,0.84988553,37945.0,37944.0,0.2455171]
[1643964214814,0.84988553,37945.0,37944.0,0.2955171]
[1643964215313,0.84988553,37945.0,37944.0,0.115875]
[1643964216314,0.84988553,37945.0,37944.0,0.27798327]
[1643964217213,0.84988553,37945.0,37944.0,0.57341227]
[1643964218261,0.84988553,37945.0,37944.0,0.34386027]
[1643964218863,0.84988553,37945.0,37944.0,0.181752]
[1643964219263,0.84988553,37945.0,37944.0,0.115875]
[1643964219464,0.84988553,37945.0,37944.0,0.065875]
[1643964219863,0.84988553,37945.0,37944.0,0.115875]
[1643964220064,0.00131852,37946.0,37944.0,0.115875]
[1643964220270,0.00131852,37946.0,37945.0,0.229546]
[1643964220568,0.00097424,37946.0,37945.0,0.279546]
[1643964220764,0.07234428,37947.0,37945.0,0.279546]
[1643964220965,0.07297423,37947.0,37945.0,0.279546]
[1643964221367,0.07297423,37947.0,37945.0,0.34541508]
[1643964221566,0.07297423,37947.0,37946.0,0.229537]
[1643964221821,0.07297423,37947.0,37946.0,0.279537]
[1643964222015,0.572,37947.0,37946.0,0.279537]
[1643964222914,0.572,37947.0,37946.0,0.63569983]
[1643964223517,0.572,37947.0,37946.0,0.279537]
[1643964223719,0.072,37947.0,37946.0,0.279537]
[1643964223916,0.072,37947.0,37946.0,0.63235206]
[1643964224119,0.072,37947.0,37946.0,0.73226206]
[1643964224319,0.072,37947.0,37946.0,0.88486206]
[1643964224520,0.00131848,37948.0,37946.0,0.7796099]
[1643964224719,0.00131848,37948.0,37947.0,0.345386]
[1643964224720,0.0009742,37948.0,37947.0,0.345386]
[1643964225023,0.00131848,37948.0,37947.0,0.497986]
[1643964225218,0.0009742,37948.0,37947.0,0.6505041]
[1643964225671,0.01034428,37949.0,37947.0,1.01248608]
[1643964225971,0.01097419,37949.0,37947.0,0.6505041]
[1643964226170,0.01097419,37949.0,37947.0,0.79365176]
[1643964226374,0.01097419,37949.0,37948.0,0.88308541]
[1643964226571,0.01097419,37949.0,37948.0,0.66520641]
[1643964226770,0.01,37949.0,37948.0,0.90835407]
[1643964226970,0.01,37949.0,37948.0,0.52526866]
[1643964227170,0.01,37949.0,37948.0,0.59112217]
[1643964227370,0.01,37949.0,37948.0,0.44797451]
[1643964227570,0.01,37949.0,37948.0,0.87718982]
[1643964228071,0.01,37949.0,37948.0,1.02033748]
[1643964229331,0.01,37949.0,37948.0,0.59112217]
[1643964229523,0.01,37949.0,37948.0,0.9933754]
[1643964229722,0.01,37949.0,37948.0,0.85022774]
[1643964229923,0.01,37949.0,37948.0,0.9933754]
[1643964230723,0.01,37949.0,37948.0,0.85022774]
[1643964231527,0.00034428,37950.0,37948.0,0.85022774]
[1643964231726,0.00034428,37955.0,37951.0,0.06584675]
[1643964231929,0.00389612,37956.0,37954.0,0.05]
[1643964232125,0.00034428,37955.0,37954.0,0.56939079]
[1643964232325,0.00389612,37956.0,37955.0,0.426999]
[1643964232523,0.0042404,37956.0,37955.0,0.78389594]
[1643964232724,0.00034428,37958.0,37955.0,0.526999]
[1643964232925,0.1998,37963.0,37958.0,0.065845]
[1643964232926,0.00034428,37962.0,37958.0,0.065845]
[1643964233169,0.20369579,37963.0,37958.0,0.065845]
[1643964233170,0.02039167,37961.0,37958.0,0.065845]
[1643964233370,0.02073585,37961.0,37958.0,0.065845]
[1643964233571,0.00034418,37960.0,37958.0,0.065845]
[1643964233770,0.51,37959.0,37958.0,0.065845]
[1643964234574,0.51,37959.0,37958.0,0.29529]
[1643964234772,0.51,37959.0,37958.0,0.6505201]
[1643964234974,0.51,37959.0,37958.0,0.7005201]
[1643964235172,0.51,37959.0,37958.0,0.4710751]
[1643964235471,0.51,37959.0,37958.0,0.7005191]
[1643964235772,0.51,37959.0,37958.0,0.4710751]
[1643964235971,0.51,37959.0,37958.0,0.7005191]
[1643964236172,0.51,37959.0,37958.0,0.4710751]
[1643964236370,0.51,37959.0,37958.0,0.7005191]
[1643964236573,0.51,37959.0,37958.0,0.4710751]
[1643964236824,0.51,37959.0,37958.0,0.7005191]
[1643964237015,0.51,37959.0,37958.0,0.115845]
[1643964237616,0.51,37959.0,37958.0,0.68349811]
[1643964237817,0.51,37959.0,37958.0,0.115845]
[1643964238018,0.51,37959.0,37958.0,0.345289]
[1643964238218,0.51,37959.0,37958.0,0.6814055]
[1643964238417,0.51,37959.0,37958.0,0.4519615]
[1643964238717,0.51,37959.0,37958.0,0.6814055]
[1643964238918,0.51,37959.0,37958.0,0.4519615]
[1643964239116,0.51,37959.0,37958.0,0.115845]
[1643964239321,0.51,37959.0,37958.0,0.215845]
[1643964239719,0.81,37959.0,37958.0,0.215845]
[1643964239922,0.81,37959.0,37958.0,0.065845]
[1643964240321,0.86,37959.0,37958.0,0.065845]
[1643964240768,0.91,37959.0,37958.0,0.065845]
[1643964242869,0.81,37959.0,37958.0,0.065845]
[1643964243068,0.86,37959.0,37958.0,0.065845]
[1643964243268,0.56,37959.0,37958.0,0.065845]
[1643964244519,0.56,37959.0,37958.0,0.115845]
[1643964244716,0.56,37959.0,37958.0,0.115745]
[1643964244919,0.06,37959.0,37958.0,0.345189]
[1643964245117,0.06,37959.0,37958.0,0.295189]
[1643964245317,0.01,37959.0,37958.0,0.345189]
[1643964245917,0.01,37959.0,37958.0,0.4450807]
[1643964246117,0.01,37959.0,37958.0,0.4449807]
[1643964246716,0.01,37959.0,37958.0,0.3949807]
[1643964246917,0.01,37959.0,37958.0,0.2949807]
[1643964247120,0.01,37959.0,37958.0,0.3949807]
[1643964247318,0.01,37959.0,37958.0,0.3948807]
[1643964248266,0.01,37959.0,37958.0,0.2948807]
[1643964248466,0.01,37959.0,37958.0,0.3947807]
[1643964249670,0.01,37959.0,37958.0,0.2947807]
[1643964250066,0.01,37959.0,37958.0,0.2946807]
[1643964251918,0.01,37959.0,37958.0,0.2945807]
[1643964254619,0.01,37959.0,37958.0,0.2944807]
[1643964255664,0.31,37959.0,37958.0,0.0650367]
[1643964255864,0.36,37959.0,37958.0,0.0650367]
[1643964256063,0.36,37959.0,37958.0,0.0649367]
[1643964256864,0.06,37959.0,37958.0,0.0649367]
[1643964257265,0.005,37959.0,37958.0,0.0649367]
[1643964257470,0.505,37959.0,37958.0,0.0649367]
[1643964257667,0.505,37959.0,37958.0,0.0648367]
[1643964257866,0.555,37959.0,37958.0,0.0648367]
[1643964262833,0.505,37959.0,37958.0,0.0648367]
[1643964263472,0.905,37959.0,37958.0,0.0648367]
[1643964263673,0.505,37959.0,37958.0,0.0648367]
[1643964264472,0.905,37959.0,37958.0,0.0648367]
[1643964264672,0.505,37959.0,37958.0,0.0648367]
[1643964264871,0.555,37959.0,37958.0,0.0648367]
[1643964265072,0.605,37959.0,37958.0,0.0648367]
[1643964265474,0.905,37959.0,37958.0,0.0648367]
[1643964266576,0.605,37959.0,37958.0,0.0648367]
[1643964270668,0.005,37959.0,37958.0,0.41127848]
[1643964270870,0.005,37959.0,37958.0,0.47091619]
[1643964271269,0.005,37959.0,37958.0,0.42091619]
[1643964271470,0.305,37959.0,37958.0,0.42091619]
[1643964272070,0.305,37959.0,37958.0,0.0648367]
[1643964272471,0.605,37959.0,37958.0,0.39631397]
[1643964273177,0.605,37959.0,37958.0,0.0648367]
[1643964274418,0.655,37959.0,37958.0,0.0648367]
[1643964274619,0.705,37959.0,37958.0,0.0648367]
[1643964274821,0.005,37959.0,37958.0,0.467434]
[1643964275027,0.005,37959.0,37958.0,0.2098767]
[1643964275220,0.005,37959.0,37958.0,0.8528155]
[1643964275420,0.00131823,37960.0,37959.0,0.229437]
[1643964275723,0.00097405,37960.0,37959.0,0.413702]
[1643964275920,0.00034418,37962.0,37959.0,0.52044629]
[1643964276120,0.01996136,37963.0,37962.0,0.48949145]
[1643964276321,0.01996136,37963.0,37962.0,0.58949145]
[1643964276922,0.01996136,37963.0,37962.0,0.295248]
[1643964277322,1.16996136,37963.0,37962.0,0.295248]
[1643964277521,1.15,37963.0,37962.0,0.295247]
[1643964279870,1.2,37963.0,37962.0,0.295247]
[1643964280669,1.2,37963.0,37962.0,0.065834]
[1643964280875,1.15,37963.0,37962.0,0.065834]
[1643964281920,1.2,37963.0,37962.0,0.065834]
[1643964282721,1.15,37963.0,37962.0,0.065834]
[1643964282920,1.2,37963.0,37962.0,0.065834]
[1643964294672,1.15,37963.0,37962.0,0.065834]
[1643964295074,1.2,37963.0,37962.0,0.065834]
[1643964296674,0.00131789,37964.0,37962.0,0.065834]
[1643964296935,0.00097373,37964.0,37963.0,0.279407]
[1643964297137,0.35131789,37964.0,37963.0,0.279407]
[1643964297431,0.35097373,37964.0,37963.0,0.279407]
[1643964297730,0.35097373,37964.0,37963.0,0.46363518]
[1643964297731,0.35,37964.0,37963.0,0.46363518]
[1643964298331,0.35,37964.0,37963.0,0.46363318]
[1643964298531,0.35,37964.0,37963.0,0.229405]
[1643964298733,0.35,37964.0,37963.0,0.279405]
[1643964299140,1.2,37964.0,37963.0,0.229405]
[1643964299431,1.2,37964.0,37962.0,0.22391236]
[1643964299432,1.25,37964.0,37962.0,0.22391236]
[1643964299632,1.25034416,37964.0,37962.0,0.065834]
[1643964299834,1.30034416,37964.0,37962.0,0.065834]
[1643964300033,1.30024971,37964.0,37962.0,0.065834]
[1643964300434,1.346178,37963.0,37962.0,0.065834]
[1643964300673,1.61062083,37963.0,37962.0,0.065834]
[1643964304428,1.61062083,37963.0,37961.0,0.131695]
[1643964304429,1.346178,37962.0,37961.0,0.131695]
[1643964304828,1.446178,37962.0,37961.0,0.131695]
[1643964308575,1.1,37962.0,37961.0,0.131695]
[1643964308974,1.446178,37962.0,37961.0,0.131695]
[1643964309377,1.446178,37962.0,37957.0,0.263408]
[1643964309574,0.30354954,37961.0,37957.0,0.263408]
[1643964309774,0.18188711,37960.0,37957.0,0.263408]
[1643964310178,0.18188711,37960.0,37958.0,0.115853]
[1643964310375,0.18188711,37960.0,37958.0,0.065853]
[1643964310575,0.18188711,37960.0,37958.0,0.115853]
[1643964310775,0.18188711,37960.0,37958.0,0.065853]
[1643964314822,0.13188711,37959.0,37958.0,0.065853]
[1643964315021,1.31377422,37959.0,37957.0,0.131708]
[1643964315224,1.36377422,37959.0,37957.0,0.131708]
[1643964315776,1.41377422,37959.0,37957.0,0.131708]
[1643964315977,0.36377422,37959.0,37957.0,0.131708]
[1643964316176,0.36377422,37959.0,37958.0,0.229445]
[1643964316777,0.31377422,37959.0,37958.0,0.229445]
[1643964316976,0.81377422,37959.0,37957.0,0.197557]
[1643964318476,0.81377422,37959.0,37958.0,0.229444]
[1643964322533,0.31377422,37959.0,37958.0,0.229444]
[1643964322931,0.81377422,37959.0,37958.0,0.229444]
[1643964323175,1.20995222,37959.0,37957.0,0.131708]
[1643964323373,0.73188711,37959.0,37957.0,0.131708]
[1643964323774,0.93188711,37958.0,37957.0,0.131708]
[1643964323974,1.06377422,37958.0,37957.0,0.131708]
[1643964324975,1.0636929,37958.0,37957.0,0.131708]
[1643964325376,0.2636929,37958.0,37957.0,0.36116]
[1643964325776,0.5636929,37958.0,37957.0,0.36116]
[1643964327426,0.2636929,37958.0,37957.0,0.36116]
[1643964328827,0.43188711,37958.0,37957.0,0.36116]
[1643964329029,0.5636929,37958.0,37957.0,0.36116]
[1643964333879,0.5636929,37958.0,37956.0,0.131709]
[1643964333880,1.2746995,37958.0,37956.0,0.131709]
[1643964334083,2.10421053,37957.0,37952.0,0.28982698]
[1643964334329,1.04178272,37953.0,37952.0,0.131726]
[1643964334523,1.28648967,37953.0,37952.0,0.361214]
[1643964334724,1.68266767,37953.0,37952.0,0.131726]
[1643964335024,1.24470695,37953.0,37949.0,0.131735]
[1643964335224,0.05,37952.0,37949.0,0.131735]
[1643964336023,0.1532578,37952.0,37949.0,0.131735]
[1643964336225,0.15423152,37952.0,37949.0,0.131735]
[1643964336423,0.05097372,37952.0,37949.0,0.131735]
[1643964336924,0.05097372,37952.0,37950.0,0.02253817]
[1643964337124,0.05,37952.0,37950.0,0.15427217]
[1643964337626,0.05,37952.0,37950.0,0.08840517]
[1643964337827,1.29244106,37951.0,37950.0,0.08840517]
[1643964338079,1.00371278,37951.0,37950.0,0.08840517]
[1643964338879,1.00371278,37951.0,37950.0,0.24034164]
[1643964339179,1.00371278,37951.0,37950.0,0.08840517]
[1643964339980,1.17114262,37951.0,37950.0,0.08840517]
[1643964340480,1.17114262,37951.0,37950.0,0.31791117]
[1643964342127,1.51732062,37951.0,37950.0,0.08840517]
[1643964343325,0.61732062,37951.0,37950.0,0.08840517]
[1643964343528,0.82114262,37951.0,37950.0,0.08840517]
[1643964344128,0.82114262,37951.0,37950.0,0.2345155]
[1643964344326,1.21732062,37951.0,37950.0,0.08840517]
[1643964345581,1.16732062,37951.0,37950.0,0.08840517]
[1643964345781,1.21732062,37951.0,37950.0,0.02253817]
[1643964346384,0.27114262,37951.0,37950.0,0.13840517]
[1643964346582,0.27114262,37951.0,37950.0,0.36791117]
[1643964346782,0.27106482,37951.0,37950.0,0.36791117]
[1643964347183,0.27106482,37951.0,37950.0,0.5508364]
[1643964347984,0.27106482,37951.0,37950.0,0.5008364]
[1643964348388,0.66724282,37951.0,37950.0,0.08840517]
[1643964348586,1.16724282,37951.0,37950.0,0.08840517]
[1643964349448,1.16724282,37951.0,37950.0,0.27716044]
[1643964349853,1.16724282,37951.0,37950.0,0.25462227]
[1643964349854,0.47444685,37951.0,37950.0,0.25462227]
[1643964350047,0.47444685,37951.0,37950.0,0.53412827]
[1643964350048,0.12826885,37951.0,37950.0,0.53412827]
[1643964350448,0.57826885,37951.0,37950.0,0.345373]
[1643964350650,0.57826885,37951.0,37950.0,0.295373]
[1643964351048,0.57826885,37951.0,37950.0,0.229506]
[1643964351452,0.57826885,37951.0,37950.0,0.40361004]
[1643964351647,0.57826885,37951.0,37950.0,0.51947704]
[1643964352247,0.12826885,37951.0,37950.0,0.51947704]
[1643964352450,0.00097372,37952.0,37950.0,0.51947704]